[Event "Titled Tuesday Blitz October 31 Late 2023"]
[White "Gerbelli Neto, Eduardo"]
[Black "Ezat, Mohamed"]
[WhiteFideId "2103281"]
[BlackFideId "10600906"]
[WhiteElo "2397"]
[BlackElo "2582"]
[Result "0-1"]
[Round "4"]
[TimeControl "180+1"]
[Date "2023.10.31"]
[WhiteClock "0:00:12"]
[BlackClock "0:01:23"]
[Board "101"]

1. e4 {[%clk 0:03:00]}  e5 {[%clk 0:02:59]} 2. Nf3 {[%clk 0:03:00]}  Nc6 {[%clk 0:02:57]} 3. d4 {[%clk 0:03:00]}  exd4 {[%clk 0:02:57]} 4. Nxd4 {[%clk 0:03:01]}  Nf6 {[%clk 0:02:57]} 5. Nxc6 {[%clk 0:02:59]}  bxc6 {[%clk 0:02:56]} 6. e5 {[%clk 0:02:59]}  Qe7 {[%clk 0:02:55]} 7. Qe2 {[%clk 0:02:58]}  Nd5 {[%clk 0:02:54]} 8. h4 {[%clk 0:02:56]}  a5 {[%clk 0:02:28]} 9. c4 {[%clk 0:02:56]}  Nb6 {[%clk 0:02:26]} 10. Rh3 {[%clk 0:02:53]}  Ba6 {[%clk 0:02:22]} 11. b3 {[%clk 0:02:22]}  a4 {[%clk 0:02:17]} 12. Ba3 {[%clk 0:02:14]}  Qe6 {[%clk 0:02:14]} 13. Bb2 {[%clk 0:01:57]}  Bb4+ {[%clk 0:02:03]} 14. Kd1 {[%clk 0:01:57]}  O-O {[%clk 0:02:01]} 15. Re3 {[%clk 0:01:00]}  Rfd8 {[%clk 0:01:56]} 16. Bc3 {[%clk 0:00:38]}  Bxc3 {[%clk 0:01:49]} 17. Nxc3 {[%clk 0:00:39]}  axb3 {[%clk 0:01:47]} 18. axb3 {[%clk 0:00:37]}  Bxc4 {[%clk 0:01:45]} 19. Rxa8 {[%clk 0:00:12]}  Bxe2+ {[%clk 0:01:23]} 0-1


[Site "https://www.chess.com"]

[Event "Titled Tuesday Blitz October 31 Late 2023"]
[White "Tifferet, Shaked"]
[Black "nicholas_ilic"]
[WhiteFideId "2811529"]
[WhiteElo "2581"]
[BlackElo "2396"]
[Result "1-0"]
[Round "4"]
[TimeControl "180+1"]
[Date "2023.10.31"]
[WhiteClock "0:02:44"]
[BlackClock "0:00:24"]
[Board "102"]

1. b3 {[%clk 0:03:00]}  d5 {[%clk 0:02:54]} 2. Bb2 {[%clk 0:03:01]}  b6 {[%clk 0:02:52]} 3. f4 {[%clk 0:02:59]}  Bb7 {[%clk 0:02:52]} 4. e3 {[%clk 0:03:00]}  Nf6 {[%clk 0:02:51]} 5. Nf3 {[%clk 0:03:00]}  Nbd7 {[%clk 0:02:51]} 6. Be2 {[%clk 0:03:01]}  e6 {[%clk 0:02:52]} 7. O-O {[%clk 0:03:00]}  Bd6 {[%clk 0:02:51]} 8. Ne5 {[%clk 0:03:00]}  Qe7 {[%clk 0:02:50]} 9. d4 {[%clk 0:02:59]}  O-O-O {[%clk 0:02:48]} 10. Nd2 {[%clk 0:02:58]}  Rdf8 {[%clk 0:02:46]} 11. a4 {[%clk 0:02:59]}  a5 {[%clk 0:02:45]} 12. c4 {[%clk 0:02:58]}  Ne8 {[%clk 0:02:31]} 13. Rc1 {[%clk 0:02:56]}  Kb8 {[%clk 0:02:26]} 14. cxd5 {[%clk 0:02:57]}  exd5 {[%clk 0:02:19]} 15. Qc2 {[%clk 0:02:51]}  f6 {[%clk 0:02:17]} 16. Nc6+ {[%clk 0:02:47]}  Bxc6 {[%clk 0:02:16]} 17. Qxc6 {[%clk 0:02:48]}  Qxe3+ {[%clk 0:02:16]} 18. Rf2 {[%clk 0:02:49]}  Qxd2 {[%clk 0:02:12]} 19. Ba6 {[%clk 0:02:47]}  Qxf2+ {[%clk 0:00:29]} 20. Kxf2 {[%clk 0:02:48]}  Nc5 {[%clk 0:00:30]} 21. Rxc5 {[%clk 0:02:45]}  Bxc5 {[%clk 0:00:24]} 22. Qb7# {[%clk 0:02:44]} 1-0


[Site "https://www.chess.com"]

[Event "Titled Tuesday Blitz October 31 Late 2023"]
[White "Baghdasaryan, Vahe"]
[Black "Iskusnyh, Sergei"]
[WhiteFideId "13303139"]
[BlackFideId "4120027"]
[WhiteElo "2382"]
[BlackElo "2521"]
[Result "0-1"]
[Round "4"]
[TimeControl "180+1"]
[Date "2023.10.31"]
[WhiteClock "0:00:00"]
[BlackClock "0:00:26"]
[Board "104"]

1. e4 {[%clk 0:03:00]}  e6 {[%clk 0:02:59]} 2. d4 {[%clk 0:02:59]}  d5 {[%clk 0:03:00]} 3. Nd2 {[%clk 0:02:59]}  c5 {[%clk 0:02:59]} 4. exd5 {[%clk 0:02:58]}  Qxd5 {[%clk 0:02:58]} 5. Ngf3 {[%clk 0:02:58]}  cxd4 {[%clk 0:02:59]} 6. Bc4 {[%clk 0:02:58]}  Qd6 {[%clk 0:02:57]} 7. O-O {[%clk 0:02:58]}  Nf6 {[%clk 0:02:56]} 8. Nb3 {[%clk 0:02:56]}  Nc6 {[%clk 0:02:56]} 9. Nbxd4 {[%clk 0:02:54]}  Nxd4 {[%clk 0:02:56]} 10. Nxd4 {[%clk 0:02:51]}  Be7 {[%clk 0:02:55]} 11. Re1 {[%clk 0:02:49]}  O-O {[%clk 0:02:54]} 12. c3 {[%clk 0:02:37]}  Qc7 {[%clk 0:02:51]} 13. Qb3 {[%clk 0:02:36]}  a6 {[%clk 0:02:45]} 14. a4 {[%clk 0:02:28]}  Bd7 {[%clk 0:02:43]} 15. g3 {[%clk 0:02:18]}  Bc5 {[%clk 0:01:53]} 16. Bf4 {[%clk 0:02:09]}  Qb6 {[%clk 0:01:52]} 17. Rad1 {[%clk 0:01:18]}  Rad8 {[%clk 0:01:42]} 18. Qc2 {[%clk 0:01:00]}  Bc8 {[%clk 0:01:31]} 19. Nb3 {[%clk 0:00:37]}  Be7 {[%clk 0:01:22]} 20. a5 {[%clk 0:00:26]}  Qc6 {[%clk 0:01:10]} 21. Bf1 {[%clk 0:00:25]}  Rxd1 {[%clk 0:00:59]} 22. Rxd1 {[%clk 0:00:25]}  Rd8 {[%clk 0:01:00]} 23. Bg2 {[%clk 0:00:21]}  Rxd1+ {[%clk 0:00:54]} 24. Qxd1 {[%clk 0:00:22]}  Qa4 {[%clk 0:00:54]} 25. Qc2 {[%clk 0:00:10]}  Nd5 {[%clk 0:00:51]} 26. Bd2 {[%clk 0:00:04]}  h6 {[%clk 0:00:49]} 27. Be4 {[%clk 0:00:04]}  Bd7 {[%clk 0:00:42]} 28. Nd4 {[%clk 0:00:04]}  Qxa5 {[%clk 0:00:39]} 29. c4 {[%clk 0:00:04]}  Qa1+ {[%clk 0:00:39]} 30. Kg2 {[%clk 0:00:04]}  Nb4 {[%clk 0:00:37]} 31. Bxb4 {[%clk 0:00:04]}  Bxb4 {[%clk 0:00:38]} 32. Bxb7 {[%clk 0:00:05]}  Qa5 {[%clk 0:00:31]} 33. Nb3 {[%clk 0:00:05]}  Qc7 {[%clk 0:00:30]} 34. Bxa6 {[%clk 0:00:04]}  Qc6+ {[%clk 0:00:29]} 35. f3 {[%clk 0:00:04]}  Qxa6 {[%clk 0:00:29]} 36. Qd3 {[%clk 0:00:03]}  Ba4 {[%clk 0:00:27]} 37. Qd8+ {[%clk 0:00:04]}  Kh7 {[%clk 0:00:27]} 38. Nd2 {[%clk 0:00:03]}  Bxd2 {[%clk 0:00:26]} 39. Qxd2 {[%clk 0:00:04]}  Qxc4 {[%clk 0:00:26]} 40. Qf2 {[%clk 0:00:00]}  Qc2 {[%clk 0:00:26]} 0-1


[Site "https://www.chess.com"]

[Event "Titled Tuesday Blitz October 31 Late 2023"]
[White "HeroRubiksCube"]
[Black "Colivet Gamboa, Julio Cesar"]
[BlackFideId "3949583"]
[WhiteElo "2515"]
[BlackElo "2367"]
[Result "1/2-1/2"]
[Round "4"]
[TimeControl "180+1"]
[Date "2023.10.31"]
[WhiteClock "0:00:01"]
[BlackClock "0:00:01"]
[Board "105"]

1. d4 {[%clk 0:03:00]}  Nf6 {[%clk 0:02:59]} 2. Nf3 {[%clk 0:03:00]}  g6 {[%clk 0:02:59]} 3. g3 {[%clk 0:02:57]}  Bg7 {[%clk 0:02:59]} 4. Bg2 {[%clk 0:02:58]}  O-O {[%clk 0:03:00]} 5. O-O {[%clk 0:02:59]}  c5 {[%clk 0:03:00]} 6. e3 {[%clk 0:02:58]}  Nc6 {[%clk 0:02:57]} 7. b3 {[%clk 0:02:54]}  d5 {[%clk 0:02:53]} 8. Bb2 {[%clk 0:02:52]}  Bf5 {[%clk 0:02:50]} 9. dxc5 {[%clk 0:02:46]}  Qa5 {[%clk 0:02:41]} 10. Nd4 {[%clk 0:02:43]}  Qxc5 {[%clk 0:02:38]} 11. Nxf5 {[%clk 0:02:42]}  gxf5 {[%clk 0:02:39]} 12. Nc3 {[%clk 0:02:34]}  Rfd8 {[%clk 0:02:36]} 13. Qd3 {[%clk 0:02:09]}  d4 {[%clk 0:02:21]} 14. exd4 {[%clk 0:02:01]}  Rxd4 {[%clk 0:02:15]} 15. Na4 {[%clk 0:01:45]}  Rxd3 {[%clk 0:01:59]} 16. Nxc5 {[%clk 0:01:45]}  Rd2 {[%clk 0:01:58]} 17. Nxb7 {[%clk 0:01:42]}  Rxc2 {[%clk 0:01:57]} 18. Bxf6 {[%clk 0:01:36]}  Bxf6 {[%clk 0:01:56]} 19. Rac1 {[%clk 0:01:37]}  Rxc1 {[%clk 0:01:51]} 20. Rxc1 {[%clk 0:01:37]}  Nd4 {[%clk 0:01:51]} 21. Rc7 {[%clk 0:01:20]}  Nb5 {[%clk 0:01:39]} 22. Rc5 {[%clk 0:01:13]}  Nd4 {[%clk 0:01:34]} 23. h4 {[%clk 0:01:11]}  Rb8 {[%clk 0:01:32]} 24. Kh2 {[%clk 0:01:06]}  f4 {[%clk 0:01:21]} 25. Be4 {[%clk 0:00:56]}  Bg7 {[%clk 0:00:55]} 26. gxf4 {[%clk 0:00:48]}  Ne6 {[%clk 0:00:48]} 27. Ra5 {[%clk 0:00:38]}  Nxf4 {[%clk 0:00:45]} 28. Rxa7 {[%clk 0:00:38]}  Bd4 {[%clk 0:00:43]} 29. Ra5 {[%clk 0:00:31]}  Bxf2 {[%clk 0:00:41]} 30. Rf5 {[%clk 0:00:28]}  Bd4 {[%clk 0:00:32]} 31. Rxf4 {[%clk 0:00:26]}  Be5 {[%clk 0:00:32]} 32. Kg3 {[%clk 0:00:26]}  f5 {[%clk 0:00:23]} 33. Bd5+ {[%clk 0:00:24]}  Kg7 {[%clk 0:00:23]} 34. Kf3 {[%clk 0:00:25]}  Bxf4 {[%clk 0:00:23]} 35. Kxf4 {[%clk 0:00:26]}  Kf6 {[%clk 0:00:22]} 36. a4 {[%clk 0:00:20]}  e5+ {[%clk 0:00:22]} 37. Kf3 {[%clk 0:00:20]}  e4+ {[%clk 0:00:17]} 38. Kf4 {[%clk 0:00:20]}  Rc8 {[%clk 0:00:17]} 39. Nd6 {[%clk 0:00:17]}  Rc3 {[%clk 0:00:15]} 40. Bxe4 {[%clk 0:00:12]}  Rxb3 {[%clk 0:00:13]} 41. Nxf5 {[%clk 0:00:12]}  Rb4 {[%clk 0:00:12]} 42. a5 {[%clk 0:00:07]}  Ra4 {[%clk 0:00:12]} 43. Ne3 {[%clk 0:00:06]}  Rxa5 {[%clk 0:00:11]} 44. Ng4+ {[%clk 0:00:07]}  Kg7 {[%clk 0:00:10]} 45. Bf5 {[%clk 0:00:06]}  Ra4+ {[%clk 0:00:09]} 46. Kg5 {[%clk 0:00:05]}  Ra5 {[%clk 0:00:07]} 47. h5 {[%clk 0:00:06]}  Ra4 {[%clk 0:00:06]} 48. h6+ {[%clk 0:00:06]}  Kh8 {[%clk 0:00:04]} 49. Nf6 {[%clk 0:00:06]}  Ra5 {[%clk 0:00:05]} 50. Nh5 {[%clk 0:00:03]}  Rb5 {[%clk 0:00:04]} 51. Ng7 {[%clk 0:00:03]}  Re5 {[%clk 0:00:03]} 52. Kf6 {[%clk 0:00:03]}  Re1 {[%clk 0:00:03]} 53. Ne6 {[%clk 0:00:02]}  Rf1 {[%clk 0:00:02]} 54. Ng5 {[%clk 0:00:02]}  Rg1 {[%clk 0:00:02]} 55. Be6 {[%clk 0:00:02]}  Rxg5 {[%clk 0:00:01]} 56. Kxg5 {[%clk 0:00:01]} 1/2-1/2


[Site "https://www.chess.com"]

[Event "Titled Tuesday Blitz October 31 Late 2023"]
[White "Tikhonov, Viacheslav"]
[Black "Dmitrenko, Viktor"]
[WhiteFideId "44196407"]
[BlackFideId "14110270"]
[WhiteElo "2512"]
[BlackElo "2357"]
[Result "0-1"]
[Round "4"]
[TimeControl "180+1"]
[Date "2023.10.31"]
[WhiteClock "0:00:00"]
[BlackClock "0:00:10"]
[Board "106"]

1. e4 {[%clk 0:03:00]}  e6 {[%clk 0:02:59]} 2. d4 {[%clk 0:03:00]}  d5 {[%clk 0:03:00]} 3. Nc3 {[%clk 0:03:01]}  Bb4 {[%clk 0:02:58]} 4. Ne2 {[%clk 0:03:01]}  dxe4 {[%clk 0:02:57]} 5. a3 {[%clk 0:03:00]}  Bxc3+ {[%clk 0:02:57]} 6. Nxc3 {[%clk 0:03:01]}  Nc6 {[%clk 0:02:57]} 7. d5 {[%clk 0:03:02]}  exd5 {[%clk 0:02:54]} 8. Qxd5 {[%clk 0:03:02]}  Be6 {[%clk 0:02:52]} 9. Qxe4 {[%clk 0:03:02]}  Nf6 {[%clk 0:02:52]} 10. Qh4 {[%clk 0:03:03]}  Qd4 {[%clk 0:02:50]} 11. Bg5 {[%clk 0:02:59]}  O-O-O {[%clk 0:02:35]} 12. Bxf6 {[%clk 0:02:39]}  gxf6 {[%clk 0:02:29]} 13. Qxd4 {[%clk 0:02:39]}  Rxd4 {[%clk 0:02:19]} 14. Bb5 {[%clk 0:02:35]}  Ne5 {[%clk 0:02:14]} 15. Rd1 {[%clk 0:02:27]}  Rhd8 {[%clk 0:02:10]} 16. Rxd4 {[%clk 0:02:24]}  Rxd4 {[%clk 0:02:11]} 17. Ke2 {[%clk 0:02:00]}  c6 {[%clk 0:01:35]} 18. Bd3 {[%clk 0:01:59]}  Nxd3 {[%clk 0:01:33]} 19. cxd3 {[%clk 0:02:00]}  Bb3 {[%clk 0:01:29]} 20. Ke3 {[%clk 0:01:54]}  Rd7 {[%clk 0:01:19]} 21. Rc1 {[%clk 0:01:28]}  Kd8 {[%clk 0:01:18]} 22. Ne4 {[%clk 0:01:25]}  f5 {[%clk 0:00:57]} 23. Nc3 {[%clk 0:00:40]}  Ke7 {[%clk 0:00:54]} 24. Ne2 {[%clk 0:00:29]}  Kf6 {[%clk 0:00:51]} 25. Nd4 {[%clk 0:00:21]}  f4+ {[%clk 0:00:47]} 26. Ke4 {[%clk 0:00:19]}  Bd5+ {[%clk 0:00:47]} 27. Kxf4 {[%clk 0:00:17]}  Bxg2 {[%clk 0:00:47]} 28. Nb3 {[%clk 0:00:07]}  b6 {[%clk 0:00:41]} 29. Rc3 {[%clk 0:00:04]}  Bd5 {[%clk 0:00:35]} 30. Nd2 {[%clk 0:00:04]}  c5 {[%clk 0:00:31]} 31. Rc2 {[%clk 0:00:05]}  Be6 {[%clk 0:00:26]} 32. Ke3 {[%clk 0:00:04]}  Bf5 {[%clk 0:00:25]} 33. Ne4+ {[%clk 0:00:04]}  Ke5 {[%clk 0:00:25]} 34. f3 {[%clk 0:00:04]}  f6 {[%clk 0:00:24]} 35. Rg2 {[%clk 0:00:05]}  Bg6 {[%clk 0:00:24]} 36. Rd2 {[%clk 0:00:03]}  f5 {[%clk 0:00:23]} 37. Nc3 {[%clk 0:00:03]}  f4+ {[%clk 0:00:23]} 38. Ke2 {[%clk 0:00:04]}  Kd4 {[%clk 0:00:21]} 39. Ne4 {[%clk 0:00:03]}  Re7 {[%clk 0:00:20]} 40. Rc2 {[%clk 0:00:03]}  Rg7 {[%clk 0:00:19]} 41. Rc4+ {[%clk 0:00:03]}  Kd5 {[%clk 0:00:20]} 42. Kf2 {[%clk 0:00:03]}  Bf5 {[%clk 0:00:19]} 43. Rc3 {[%clk 0:00:01]}  Bh3 {[%clk 0:00:19]} 44. Ke1 {[%clk 0:00:01]}  Rg1+ {[%clk 0:00:18]} 45. Ke2 {[%clk 0:00:01]}  Rg2+ {[%clk 0:00:19]} 46. Nf2 {[%clk 0:00:02]}  Rxh2 {[%clk 0:00:19]} 47. Rc4 {[%clk 0:00:02]}  Bf5 {[%clk 0:00:18]} 48. Rxf4 {[%clk 0:00:02]}  Bxd3+ {[%clk 0:00:18]} 49. Ke3 {[%clk 0:00:02]}  Bg6 {[%clk 0:00:16]} 50. Rf6 {[%clk 0:00:01]}  Kc4 {[%clk 0:00:16]} 51. Rd6 {[%clk 0:00:01]}  Kb3 {[%clk 0:00:14]} 52. Rd2 {[%clk 0:00:01]}  c4 {[%clk 0:00:14]} 53. Re2 {[%clk 0:00:01]}  b5 {[%clk 0:00:14]} 54. Rd2 {[%clk 0:00:02]}  a5 {[%clk 0:00:13]} 55. Kf4 {[%clk 0:00:02]}  b4 {[%clk 0:00:12]} 56. axb4 {[%clk 0:00:02]}  axb4 {[%clk 0:00:13]} 57. Kg3 {[%clk 0:00:03]}  Rh5 {[%clk 0:00:10]} 58. f4 {[%clk 0:00:02]}  Rc5 {[%clk 0:00:09]} 59. Rd8 {[%clk 0:00:02]}  c3 {[%clk 0:00:09]} 60. bxc3 {[%clk 0:00:02]}  Rxc3+ {[%clk 0:00:10]} 61. Kg4 {[%clk 0:00:02]}  Rc5 {[%clk 0:00:11]} 62. Nd1 {[%clk 0:00:02]}  Kc2 {[%clk 0:00:11]} 63. Ne3+ {[%clk 0:00:02]}  Kc1 {[%clk 0:00:12]} 64. Nd5 {[%clk 0:00:02]}  b3 {[%clk 0:00:11]} 65. Rb8 {[%clk 0:00:02]}  b2 {[%clk 0:00:11]} 66. Nb4 {[%clk 0:00:01]}  b1=Q {[%clk 0:00:10]} 67. Nd3+ {[%clk 0:00:00]}  Qxd3 {[%clk 0:00:10]} 0-1


[Site "https://www.chess.com"]

[Event "Titled Tuesday Blitz October 31 Late 2023"]
[White "Bogaudinov, Rushan"]
[Black "Girsh, Daniel"]
[WhiteFideId "4129288"]
[BlackFideId "30949190"]
[WhiteElo "2354"]
[BlackElo "2511"]
[Result "1-0"]
[Round "4"]
[TimeControl "180+1"]
[Date "2023.10.31"]
[WhiteClock "0:00:09"]
[BlackClock "0:00:07"]
[Board "107"]

1. d4 {[%clk 0:02:45]}  Nf6 {[%clk 0:02:59]} 2. c4 {[%clk 0:02:44]}  e6 {[%clk 0:03:00]} 3. Nc3 {[%clk 0:02:43]}  d5 {[%clk 0:03:00]} 4. e3 {[%clk 0:02:42]}  Bb4 {[%clk 0:02:59]} 5. Nf3 {[%clk 0:02:41]}  O-O {[%clk 0:02:59]} 6. Qb3 {[%clk 0:02:41]}  c5 {[%clk 0:02:57]} 7. Be2 {[%clk 0:02:39]}  Nc6 {[%clk 0:02:55]} 8. a3 {[%clk 0:02:32]}  Bxc3+ {[%clk 0:02:54]} 9. bxc3 {[%clk 0:02:32]}  Qa5 {[%clk 0:02:51]} 10. O-O {[%clk 0:02:23]}  Ne4 {[%clk 0:02:50]} 11. Bb2 {[%clk 0:02:19]}  Rd8 {[%clk 0:02:42]} 12. Rfc1 {[%clk 0:02:11]}  h6 {[%clk 0:02:34]} 13. a4 {[%clk 0:02:11]}  Qc7 {[%clk 0:02:25]} 14. Qc2 {[%clk 0:01:55]}  Na5 {[%clk 0:02:11]} 15. Bd3 {[%clk 0:01:37]}  f5 {[%clk 0:02:03]} 16. Ne5 {[%clk 0:01:34]}  b6 {[%clk 0:01:48]} 17. cxd5 {[%clk 0:01:28]}  exd5 {[%clk 0:01:47]} 18. f3 {[%clk 0:01:21]}  c4 {[%clk 0:01:47]} 19. Bxe4 {[%clk 0:01:02]}  fxe4 {[%clk 0:01:46]} 20. Rf1 {[%clk 0:00:59]}  Bf5 {[%clk 0:01:42]} 21. g4 {[%clk 0:00:53]}  Bh7 {[%clk 0:01:42]} 22. f4 {[%clk 0:00:53]}  Nb3 {[%clk 0:01:39]} 23. Rae1 {[%clk 0:00:50]}  Rf8 {[%clk 0:01:38]} 24. Ba3 {[%clk 0:00:49]}  Rf6 {[%clk 0:01:38]} 25. Re2 {[%clk 0:00:46]}  Re8 {[%clk 0:01:37]} 26. Rg2 {[%clk 0:00:45]}  g5 {[%clk 0:01:22]} 27. fxg5 {[%clk 0:00:41]}  Rxf1+ {[%clk 0:01:22]} 28. Kxf1 {[%clk 0:00:41]}  hxg5 {[%clk 0:01:23]} 29. Rf2 {[%clk 0:00:36]}  Rxe5 {[%clk 0:01:12]} 30. dxe5 {[%clk 0:00:31]}  Qxe5 {[%clk 0:01:12]} 31. Rf8+ {[%clk 0:00:29]}  Kg7 {[%clk 0:01:11]} 32. Qf2 {[%clk 0:00:30]}  Qe6 {[%clk 0:00:50]} 33. Ra8 {[%clk 0:00:29]}  Qd7 {[%clk 0:00:23]} 34. Qf8+ {[%clk 0:00:22]}  Kg6 {[%clk 0:00:23]} 35. Be7 {[%clk 0:00:18]}  Qe6 {[%clk 0:00:20]} 36. Rxa7 {[%clk 0:00:13]}  Qxg4 {[%clk 0:00:10]} 37. Qf6+ {[%clk 0:00:13]}  Kh5 {[%clk 0:00:10]} 38. Bd6 {[%clk 0:00:11]}  Qd1+ {[%clk 0:00:09]} 39. Kg2 {[%clk 0:00:11]}  Qe2+ {[%clk 0:00:09]} 40. Qf2 {[%clk 0:00:11]}  Qg4+ {[%clk 0:00:09]} 41. Bg3 {[%clk 0:00:11]}  Bg6 {[%clk 0:00:08]} 42. h3 {[%clk 0:00:11]}  Qd1 {[%clk 0:00:08]} 43. Ra8 {[%clk 0:00:10]}  Qf3+ {[%clk 0:00:03]} 44. Qxf3+ {[%clk 0:00:10]}  exf3+ {[%clk 0:00:04]} 45. Kxf3 {[%clk 0:00:11]}  Nd2+ {[%clk 0:00:05]} 46. Ke2 {[%clk 0:00:11]}  Ne4 {[%clk 0:00:06]} 47. Rh8+ {[%clk 0:00:10]}  Bh7 {[%clk 0:00:07]} 48. Rxh7+ {[%clk 0:00:10]}  Kg6 {[%clk 0:00:08]} 49. Rb7 {[%clk 0:00:10]}  Nxg3+ {[%clk 0:00:08]} 50. Kd2 {[%clk 0:00:10]}  Kf5 {[%clk 0:00:09]} 51. Rxb6 {[%clk 0:00:09]}  Ne4+ {[%clk 0:00:09]} 52. Kc2 {[%clk 0:00:09]}  Ke5 {[%clk 0:00:10]} 53. a5 {[%clk 0:00:09]}  Nc5 {[%clk 0:00:11]} 54. a6 {[%clk 0:00:09]}  Ke4 {[%clk 0:00:11]} 55. a7 {[%clk 0:00:10]}  d4 {[%clk 0:00:07]} 56. cxd4 {[%clk 0:00:09]} 1-0


[Site "https://www.chess.com"]

[Event "Titled Tuesday Blitz October 31 Late 2023"]
[White "subham777"]
[Black "Minina, Veronika"]
[BlackFideId "4174780"]
[WhiteElo "2509"]
[BlackElo "2343"]
[Result "1-0"]
[Round "4"]
[TimeControl "180+1"]
[Date "2023.10.31"]
[WhiteClock "0:00:02"]
[BlackClock "0:00:00"]
[Board "109"]

1. e4 {[%clk 0:03:00]}  c5 {[%clk 0:02:54]} 2. Nf3 {[%clk 0:03:00]}  Nc6 {[%clk 0:02:52]} 3. Bb5 {[%clk 0:02:58]}  e6 {[%clk 0:02:52]} 4. O-O {[%clk 0:02:58]}  a6 {[%clk 0:02:50]} 5. Bxc6 {[%clk 0:02:56]}  bxc6 {[%clk 0:02:50]} 6. c3 {[%clk 0:02:56]}  Ne7 {[%clk 0:02:51]} 7. d4 {[%clk 0:02:55]}  cxd4 {[%clk 0:02:50]} 8. cxd4 {[%clk 0:02:54]}  Ng6 {[%clk 0:02:51]} 9. Nc3 {[%clk 0:02:50]}  d5 {[%clk 0:02:51]} 10. Bg5 {[%clk 0:02:39]}  f6 {[%clk 0:02:40]} 11. Bd2 {[%clk 0:02:17]}  Be7 {[%clk 0:02:30]} 12. Re1 {[%clk 0:01:42]}  O-O {[%clk 0:02:28]} 13. Rc1 {[%clk 0:01:40]}  c5 {[%clk 0:02:00]} 14. exd5 {[%clk 0:00:51]}  exd5 {[%clk 0:01:53]} 15. dxc5 {[%clk 0:00:51]}  Bxc5 {[%clk 0:01:49]} 16. Be3 {[%clk 0:00:47]}  Bxe3 {[%clk 0:01:17]} 17. Rxe3 {[%clk 0:00:48]}  Bb7 {[%clk 0:01:10]} 18. Rd3 {[%clk 0:00:44]}  Nf4 {[%clk 0:01:06]} 19. Rd4 {[%clk 0:00:39]}  Ne6 {[%clk 0:01:00]} 20. Rd2 {[%clk 0:00:40]}  Nc7 {[%clk 0:00:47]} 21. Nd4 {[%clk 0:00:36]}  Qd7 {[%clk 0:00:45]} 22. Nb3 {[%clk 0:00:31]}  Bc6 {[%clk 0:00:28]} 23. Ne2 {[%clk 0:00:23]}  Rfd8 {[%clk 0:00:27]} 24. Ned4 {[%clk 0:00:22]}  Ba4 {[%clk 0:00:23]} 25. Qf3 {[%clk 0:00:20]}  Bxb3 {[%clk 0:00:20]} 26. Nxb3 {[%clk 0:00:20]}  Ne6 {[%clk 0:00:18]} 27. Rcd1 {[%clk 0:00:18]}  d4 {[%clk 0:00:14]} 28. Nxd4 {[%clk 0:00:16]}  Rac8 {[%clk 0:00:11]} 29. Qb3 {[%clk 0:00:03]}  Kh8 {[%clk 0:00:07]} 30. h3 {[%clk 0:00:01]}  Nxd4 {[%clk 0:00:06]} 31. Rxd4 {[%clk 0:00:02]}  Qxd4 {[%clk 0:00:06]} 32. Rxd4 {[%clk 0:00:03]}  Rxd4 {[%clk 0:00:06]} 33. Qe6 {[%clk 0:00:04]}  Rcd8 {[%clk 0:00:06]} 34. Qxa6 {[%clk 0:00:04]}  Rd1+ {[%clk 0:00:06]} 35. Kh2 {[%clk 0:00:04]}  R1d2 {[%clk 0:00:06]} 36. Qa5 {[%clk 0:00:04]}  h6 {[%clk 0:00:05]} 37. f4 {[%clk 0:00:04]}  R8d5 {[%clk 0:00:05]} 38. Qa8+ {[%clk 0:00:03]}  Kh7 {[%clk 0:00:05]} 39. Qa6 {[%clk 0:00:02]}  Rxb2 {[%clk 0:00:04]} 40. Qc4 {[%clk 0:00:02]}  Rdd2 {[%clk 0:00:04]} 41. Qe4+ {[%clk 0:00:03]}  Kg8 {[%clk 0:00:02]} 42. a4 {[%clk 0:00:03]}  Ra2 {[%clk 0:00:01]} 43. Qa8+ {[%clk 0:00:01]}  Kh7 {[%clk 0:00:00]} 44. Qe4+ {[%clk 0:00:02]} 1-0


[Site "https://www.chess.com"]